[Event "Chess Ladies Graz 2024"]
[Site "Graz"]
[Date "2024.02.27"]
[Round "3.2"]
[White "Atalik, Ekaterina"]
[Black "Mayrhuber, Nikola"]
[Result "1-0"]
[ECO "E46"]
[WhiteElo "2405"]
[BlackElo "1980"]
[Annotator "TA"]
[PlyCount "85"]
[EventDate "2024.02.25"]
[EventType "tourn"]
[EventCountry "AUT"]
[SourceTitle "playchess.com"]
[Source "ChessBase"]
[SourceQuality "1"]
[TimeControl "40/5400+30:1800+30"]

{[%evp 14,85,3,0,-8,1,7,-10,14,9,24,19,14,32,36,17,44,-45,-49,-90,-81,-100,-97,-80,-22,-15,-10,-8,-27,-4,-6,-58,0,0,18,0,32,35,132,139,139,139,139,128,128,128,198,191,256,256,485,500,498,491,481,396,682,677,664,660,654,647,636,598,599,376,4335,2704,4133,2727,12850,12847,29972,29974]} 1. d4 {[%emt 0:00:03]} Nf6 {[%emt 0:00:05]} 2. c4 {[%emt 0:00:11]} e6 {[%emt 0:00:04]} 3. Nc3 {[%emt 0:00:08]} Bb4 {[%emt 0:00:09]} 4. e3 {[%emt 0:00:17]} O-O {[%emt 0:00:06]} 5. Nge2 {[%emt 0:00:15]} Re8 {[%emt 0:00:17]} 6. a3 {[%emt 0:00:13]} Bf8 {[%emt 0:00:05]} 7. d5 {[%emt 0:00:22]} exd5 {[%emt 0:02:44]} 8. cxd5 {[%emt 0:00:17]} a5 {[%emt 0:02:32]} 9. Ng3 {[%emt 0:01:40]} Na6 {[%emt 0:01:10]} 10. Be2 {[%emt 0:04:25]} Nc5 {[%emt 0:00:57] The position is equal.} 11. b3 {[%emt 0:03:42]} b6 {[%emt 0:02:56][%cal Oh7h5]} 12. O-O {[%emt 0:00:50]} Ba6 {[%emt 0:05:34]} 13. Bxa6 {[%emt 0:03:06]} Rxa6 {[%emt 0:00:17]} 14. Bb2 {[%emt 0:00:50]} c6 {[%emt 0:12:50] [#]} 15. e4 {[%emt 0:23:26]} b5 $15 {[%emt 0:03:31]} 16. Re1 {[%emt 0:15:12]} b4 $1 {[%emt 0:11:43]} 17. axb4 {[%emt 0:10:20]} axb4 {[%emt 0:00:10] ...Rxa1 is the strong threat.} 18. Na4 {[%emt 0:00:24]} (18. Rxa6 $2 bxc3 19. Bxc3 Nxa6 $19) 18... Nxa4 {[%emt 0:17:02]} (18... Nfxe4 $17 {Hoping for ...Nxa4.} 19. dxc6 Rxc6 20. Nxc5 Nxc5) 19. Rxa4 $11 {[%emt 0:03:13]} Rxa4 {[%emt 0:00:34]} 20. bxa4 {[%emt 0:00:05]} cxd5 {[%emt 0:02:17]} 21. e5 {[%emt 0:00:35]} Ne4 {[%emt 0:00:32]} 22. Qxd5 {[%emt 0:00:14]} (22. Nxe4 $11 dxe4 23. Rxe4) 22... Nxg3 {[%emt 0:05:00]} (22... Nc3 $15 23. Bxc3 bxc3) 23. hxg3 {[%emt 0:00:06]} Re6 {[%emt 0:01:15]} 24. Rd1 {[%emt 0:01:34]} d6 {[%emt 0:03:01]} 25. Qb5 {[%emt 0:00:52]} Qg5 {[%emt 0:05:58] White stays focused until the end.} ({Black should try} 25... Qc8 $14 26. Qxb4 dxe5) 26. exd6 $1 $16 {[%emt 0:04:02] White is more active.} (26. Qxb4 $6 Rh6 27. Rc1 (27. exd6 $2 Qh5 $19) 27... Qh5 $11) 26... Qxb5 {[%emt 0:03:51]} 27. axb5 {[%emt 0:00:05] aiming for d7.} Rxd6 {[%emt 0:02:12]} 28. Rxd6 {[%emt 0:00:15]} Bxd6 {[%emt 0:00:02][%mdl 4096] Endgame. KB-KB} 29. Kf1 $1 {[%emt 0:00:24]} f6 {[%emt 0:05:35]} (29... h5 $16 30. Ke2 (30. b6 f6 $11) 30... Bc5) 30. Ke2 $1 $18 {[%emt 0:00:12] Threatens to win with Kd3.} (30. b6 Kf7 $11) 30... Kf7 {[%emt 0:00:02] [#]} (30... Bc5 $142 31. f3 Kf7) 31. Kd3 $1 {[%emt 0:00:47]} Bc5 $2 {[%emt 0:03:08] [#]} (31... Ke6 {might work better.} 32. Kc4 g5) 32. Bd4 $1 {[%emt 0:02:11]} Bd6 {[%emt 0:05:12]} 33. Kc4 {[%emt 0:01:18]} Ke6 {[%emt 0:00:33]} 34. Be3 {[%emt 0:00:59]} g5 $2 {[%emt 0:02:55]} (34... Kd7 35. Bf4 Bf8) 35. Bd2 {[%emt 0:01:08]} b3 {[%emt 0:01:14]} 36. Kxb3 {[%emt 0:00:05]} Kd5 {[%emt 0:00:03]} 37. Be3 {[%emt 0:00:45]} h5 {[%emt 0:01:08]} 38. b6 {[%emt 0:04:04]} Kc6 {[%emt 0:01:00]} 39. Kc4 {[%emt 0:00:29]} Be5 $2 {[%emt 0:01:43]} (39... g4 40. Kd3 f5) 40. Bd4 {[%emt 0:01:51] Threatening mate with Bxe5.} Bd6 {[%emt 0:00:32]} 41. Bxf6 {[%emt 0:32:22]} Kxb6 {[%emt 0:11:52]} 42. Kd5 {[%emt 0:00:00]} Bc5 {[%emt 0:01:11]} 43. Bd4 {[%emt 0:00:00] Weighted Error Value: White=0.10 (very precise) /Black=0.51.  Mistake:       	White=2     	Black=8      Inaccurate:     	White=1     	Black=2      OK:         	White=9     	Black=9      Best:        	White=2     	Black=2      Strong:       	White=5     	Black=1} ({Weaker is} 43. Bxg5 Bxf2 44. Bd8+ Kb5 $14) 1-0

[Event "Chess Ladies Graz 2024"]
[Site "Graz"]
[Date "2024.02.27"]
[Round "3.3"]
[White "Froewis, Annika"]
[Black "Bodnaruk, Anastasia"]
[Result "0-1"]
[ECO "A45"]
[WhiteElo "2133"]
[BlackElo "2340"]
[Annotator "TA"]
[PlyCount "48"]
[EventDate "2024.02.25"]
[EventType "tourn"]
[EventCountry "AUT"]
[SourceTitle "playchess.com"]
[Source "ChessBase"]
[SourceQuality "1"]
[TimeControl "40/5400+30:1800+30"]

{[%evp 9,48,0,8,9,13,0,0,12,0,13,21,22,32,0,0,-20,0,-197,-197,-200,-206,-194,-194,-255,-257,-250,-243,-249,-249,-393,-387,-387,-340,-390,-373,-396,-396,-529,-529,-629,-620]} 1. d4 {[%emt 0:00:02]} Nf6 {[%emt 0:00:08]} 2. Bf4 {[%emt 0:00:05]} g6 {[%emt 0:00:07]} 3. Nc3 {[%emt 0:00:06]} d5 {[%emt 0:00:05]} 4. e3 {[%emt 0:00:05]} Bg7 {[%emt 0:00:06]} 5. h4 {[%emt 0:00:13]} h5 {[%emt 0:00:13]} 6. Nf3 {[%emt 0:00:14]} O-O {[%emt 0:00:32][%cal Oc7c5]} 7. Ne5 {[%emt 0:00:18]} c5 {[%emt 0:01:10]} 8. Qd2 {[%emt 0:03:07] The position is equal.} Qa5 {[%emt 0:01:23]} 9. f3 {[%emt 0:02:13]} Nc6 {[%emt 0:02:12]} 10. dxc5 {[%emt 0:12:13]} Qxc5 {[%emt 0:05:30]} 11. Nxc6 {[%emt 0:06:26]} (11. O-O-O $5) 11... Qxc6 {[%emt 0:00:20]} (11... bxc6 $2 12. Na4 $18) 12. Be5 {[%emt 0:01:23]} Ne4 {[%emt 0:13:32]} 13. Nxd5 $2 {[%emt 0:24:26]} Nxd2 $19 {[%emt 0:04:34]} ({Much less strong is} 13... Bxe5 14. fxe4 (14. Nxe7+ $2 Kg7 $19) 14... Bg3+ (14... Bxb2 $2 15. Nxe7+ Kh8 16. Nxc6 $18) 15. Kd1 $17) 14. Nxe7+ {[%emt 0:00:32]} Kh7 {[%emt 0:00:06]} 15. Nxc6 {[%emt 0:00:20] [#] Strongly threatening Bxg7.} Nxf1 {[%emt 0:00:44]} 16. Kxf1 {[%emt 0:09:22]} (16. Bxg7 $142 Kxg7 17. Rxf1 bxc6 18. O-O-O) 16... bxc6 {[%emt 0:02:11]} 17. Bxg7 {[%emt 0:00:15]} Kxg7 {[%emt 0:00:04]} 18. Rd1 {[%emt 0:00:26]} Be6 {[%emt 1:06:33][%cal Of8b8]} 19. Rd6 {[%emt 0:00:59]} (19. b3 $142) 19... Rfd8 {[%emt 0:00:00]} ({Resist} 19... Bxa2 20. Ke2 Bc4+ 21. Kd2 $19) 20. Rxd8 {[%emt 0:00:23]} Rxd8 {[%emt 0:00:00]} 21. Ke2 {[%emt 0:00:40] Repels Rd1} Bc4+ {[%emt 0:00:00]} ({Not} 21... Bxa2 22. b3 $11) 22. Ke1 {[%emt 0:00:08]} Bxa2 {[%emt 0:00:00]} 23. b3 {[%emt 0:00:15]} Bb1 {[%emt 0:00:00]} 24. c3 {[%emt 0:01:21]} Bc2 {[%emt 0:00:00] Weighted Error Value: White=0.45/Black=0.02 (flawless) .  Loses game:     	White=1     	---        Mistake:       	White=2     	---        Inaccurate:     	White=2     	---        OK:         	White=6     	Black=7      Best:        	White=3     	Black=3} 0-1

[Event "Chess Ladies Graz 2024"]
[Site "Graz"]
[Date "2024.02.27"]
[Round "3.4"]
[White "Schloffer, Jasmin-Denise"]
[Black "Polterauer, Chiara"]
[Result "1-0"]
[ECO "D97"]
[WhiteElo "2178"]
[BlackElo "2189"]
[Annotator "RC"]
[PlyCount "165"]
[EventDate "2024.02.25"]
[EventType "tourn"]
[EventCountry "AUT"]
[SourceTitle "playchess.com"]
[Source "ChessBase"]
[SourceQuality "1"]
[TimeControl "40/5400+30:1800+30"]

1. d4 {[%emt 0:00:03]} Nf6 {[%emt 0:00:05]} 2. c4 {[%emt 0:00:05]} g6 {[%emt 0:00:05]} 3. Nc3 {[%emt 0:00:04]} d5 {[%emt 0:00:08]} 4. Nf3 {[%emt 0:00:05]} Bg7 {[%emt 0:00:10]} 5. Qb3 {[%emt 0:00:05]} dxc4 {[%emt 0:00:21]} 6. Qxc4 {[%emt 0:00:06]} O-O {[%emt 0:00:30]} 7. e4 {[%emt 0:00:05]} a6 {[%emt 0:00:07]} 8. Be2 {[%emt 0:00:05]} b5 {[%emt 0:00:18]} 9. Qb3 {[%emt 0:00:05]} c5 {[%emt 0:00:08]} 10. dxc5 {[%emt 0:00:05]} Be6 {[%emt 0:00:06]} 11. Qc2 {[%emt 0:00:05]} Nbd7 {[%emt 0:00:13]} 12. Be3 {[%emt 0:00:06]} Rc8 {[%emt 0:00:19]} 13. Rd1 {[%emt 0:00:06]} Qa5 {[%emt 0:00:15]} 14. a3 {[%emt 0:00:15]} b4 {[%emt 0:00:11]} 15. axb4 {[%emt 0:00:06]} Qxb4 {[%emt 0:00:04]} 16. O-O {[%emt 0:00:40]} Bb3 {[%emt 0:08:48]} 17. Rd4 {[%emt 0:05:17]} Qb7 {[%emt 0:15:08]} 18. Bxa6 {[%emt 0:21:50]} Qxa6 {[%emt 0:00:10]} 19. Qxb3 {[%emt 0:00:05]} Nxc5 {[%emt 0:00:17]} 20. Qc4 {[%emt 0:07:50]} Qxc4 {[%emt 0:25:55]} 21. Rxc4 {[%emt 0:00:07]} Nd3 {[%emt 0:00:12]} 22. Rxc8 {[%emt 0:07:25]} Rxc8 {[%emt 0:00:05]} 23. Bd4 {[%emt 0:00:11]} Ng4 {[%emt 0:02:52]} 24. Nd5 {[%emt 0:14:18]} Bxd4 {[%emt 0:01:33]} 25. Nxd4 {[%emt 0:12:10]} Kf8 {[%emt 0:00:28]} 26. f3 {[%emt 0:01:56]} Nge5 {[%emt 0:00:52]} 27. b3 {[%emt 0:02:26]} e6 {[%emt 0:01:25]} 28. Ne3 {[%emt 0:03:56]} Nb4 {[%emt 0:00:43]} 29. Ne2 {[%emt 0:03:10]} Ra8 {[%emt 0:03:09]} 30. Rb1 {[%emt 0:03:11]} Ra2 {[%emt 0:03:15]} 31. Nc3 {[%emt 0:03:06]} Ra8 {[%emt 0:03:23]} 32. Nc4 {[%emt 0:02:38]} Ned3 {[%emt 0:00:59]} 33. Na4 {[%emt 0:01:03]} Rd8 {[%emt 0:01:54]} 34. Rd1 {[%emt 0:03:00]} Rb8 {[%emt 0:05:18]} 35. g3 {[%emt 0:01:12]} f6 {[%emt 0:08:17]} 36. Nab6 {[%emt 0:03:54]} Ke7 {[%emt 0:02:57]} 37. Na4 {[%emt 0:00:44]} h5 {[%emt 0:03:24]} 38. Kf1 {[%emt 0:00:37]} h4 {[%emt 0:01:52]} 39. Ke2 {[%emt 0:01:26]} Rd8 {[%emt 0:05:26]} 40. Nab2 {[%emt 0:04:45]} hxg3 {[%emt 0:01:05]} 41. hxg3 {[%emt 0:06:43]} Nc5 {[%emt 0:00:36]} 42. Rxd8 {[%emt 0:02:00]} Kxd8 {[%emt 0:00:05]} 43. Na5 {[%emt 0:03:38]} f5 {[%emt 0:02:28]} 44. exf5 {[%emt 0:00:45]} gxf5 {[%emt 0:00:32]} 45. Kd2 {[%emt 0:00:47]} Nd5 {[%emt 0:03:00]} 46. Nd3 {[%emt 0:02:02]} Na6 {[%emt 0:00:51]} 47. g4 {[%emt 0:04:16]} fxg4 {[%emt 0:00:49]} 48. fxg4 {[%emt 0:00:05]} Ke7 {[%emt 0:01:26]} 49. Nc4 {[%emt 0:02:46]} Kf6 {[%emt 0:08:43]} 50. Ne3 {[%emt 0:02:22]} Nb6 {[%emt 0:03:06]} 51. Ke2 {[%emt 0:00:57]} Kg5 {[%emt 0:00:55]} 52. Kf3 {[%emt 0:00:51]} Nd7 {[%emt 0:01:18]} 53. Nc4 {[%emt 0:03:02]} Nf6 {[%emt 0:00:21]} 54. Nce5 {[%emt 0:00:16]} Nd5 {[%emt 0:01:04]} 55. Kg3 {[%emt 0:00:18]} Ne3 {[%emt 0:01:01]} 56. Nf3+ {[%emt 0:00:47]} Kf6 {[%emt 0:00:11]} 57. Kh4 {[%emt 0:00:14]} Nc7 {[%emt 0:02:11]} 58. Nd2 {[%emt 0:02:58]} Nf5+ {[%emt 0:04:57]} 59. gxf5 {[%emt 0:03:33]} Kxf5 {[%emt 0:00:05]} 60. Kg3 {[%emt 0:00:36]} e5 {[%emt 0:00:06]} 61. Nc5 {[%emt 0:01:52]} e4 {[%emt 0:02:34]} 62. Ndxe4 {[%emt 0:00:42]} Ke5 {[%emt 0:00:02]} 63. Kf3 {[%emt 0:00:36]} Kd4 {[%emt 0:00:06]} 64. Ke2 {[%emt 0:00:42]} Nb5 {[%emt 0:02:07]} 65. Kd2 {[%emt 0:00:28]} Na3 {[%emt 0:00:19]} 66. Kc1 {[%emt 0:00:40]} Kd5 {[%emt 0:00:32]} 67. Kb2 {[%emt 0:00:35]} Nc4+ {[%emt 0:00:34]} 68. Kc3 {[%emt 0:00:30]} Nb6 {[%emt 0:02:54]} 69. Kb4 {[%emt 0:00:16]} Kc6 {[%emt 0:00:06]} 70. Ka5 {[%emt 0:00:04]} Nd5 {[%emt 0:00:11]} 71. Nd3 {[%emt 0:00:21]} Nb6 {[%emt 0:00:25]} 72. Ne5+ {[%emt 0:00:58]} Kc7 {[%emt 0:00:23]} 73. b4 {[%emt 0:00:59]} Nd5 {[%emt 0:00:04]} 74. b5 {[%emt 0:00:03]} Nb6 {[%emt 0:00:08]} 75. Nd2 {[%emt 0:00:21]} Kb7 {[%emt 0:01:30]} 76. Ndc4 {[%emt 0:00:31]} Nd5 {[%emt 0:00:04]} 77. Nd3 {[%emt 0:00:56]} Nc7 {[%emt 0:01:52]} 78. Nc5+ {[%emt 0:00:38]} Ka8 {[%emt 0:00:45]} 79. b6 {[%emt 0:00:26]} Nd5 {[%emt 0:00:16]} 80. b7+ {[%emt 0:00:16]} Ka7 {[%emt 0:01:54]} 81. Ne5 {[%emt 0:00:28]} Ne7 {[%emt 0:01:07]} 82. Kb5 {[%emt 0:00:06]} Nc8 {[%emt 0:00:40]} 83. Nc6# {[%emt 0:00:06]} 1-0

[Event "Chess Ladies Graz 2024"]
[Site "Graz"]
[Date "2024.02.27"]
[Round "3.5"]
[White "Mkrtchian, Lilit"]
[Black "Trippold, Denise"]
[Result "1-0"]
[ECO "E17"]
[WhiteElo "2378"]
[BlackElo "2147"]
[Annotator "TA"]
[PlyCount "75"]
[EventDate "2024.02.25"]
[EventType "tourn"]
[EventCountry "AUT"]
[SourceTitle "playchess.com"]
[Source "ChessBase"]
[SourceQuality "1"]
[TimeControl "40/5400+30:1800+30"]

{[%evp 19,75,14,19,20,79,64,64,50,84,72,71,72,77,81,89,80,78,83,83,77,84,83,106,139,92,-35,-37,-29,-38,-59,-18,-15,0,0,0,0,195,202,188,195,592,549,1166,1147,1177,1169,1203,1203,1129,1106,29974,29974,29981,29982,29982,29983,29983,29984]} 1. Nf3 {[%emt 0:00:19]} Nf6 {[%emt 0:00:23]} 2. c4 {[%emt 0:01:20]} e6 {[%emt 0:00:34]} 3. g3 {[%emt 0:00:44]} b6 {[%emt 0:00:29]} 4. Bg2 {[%emt 0:00:21]} Bb7 {[%emt 0:00:12]} 5. O-O {[%emt 0:00:08]} Be7 {[%emt 0:00:29]} 6. d4 {[%emt 0:00:15]} O-O {[%emt 0:00:16]} 7. Re1 {[%emt 0:00:09]} d5 {[%emt 0:00:59]} 8. cxd5 {[%emt 0:00:17]} exd5 {[%emt 0:00:06]} 9. Nc3 {[%emt 0:00:04]} Nbd7 {[%emt 0:05:52]} 10. Bf4 {[%emt 0:00:16]} c5 {[%emt 0:01:45]} 11. dxc5 {[%emt 0:00:43]} bxc5 {[%emt 0:00:35]} (11... Nxc5 $11 12. Rc1 Nfe4) 12. Nh4 $16 {[%emt 0:01:48]} g6 {[%emt 0:11:48] Wards off Nf5} 13. Nxd5 {[%emt 0:15:57] White is much more active. White is slightly better.} (13. Bxd5 Nxd5 14. Nxd5 Bxh4 15. gxh4 Qxh4 $16) 13... Nxd5 {[%emt 0:03:09]} 14. Bxd5 {[%emt 0:00:06]} Bxd5 {[%emt 0:00:36]} 15. Qxd5 {[%emt 0:00:05]} Bxh4 {[%emt 0:15:31]} 16. gxh4 {[%emt 0:00:24]} Qxh4 {[%emt 0:01:20]} 17. Bg3 {[%emt 0:02:37]} Qg4 {[%emt 0:02:48]} 18. Rad1 {[%emt 0:10:16]} Rad8 {[%emt 0:16:58]} 19. f3 {[%emt 0:02:46]} Qb4 {[%emt 0:00:05]} 20. b3 {[%emt 0:24:46]} Rfe8 {[%emt 0:06:35]} 21. Bc7 {[%emt 0:13:37]} (21. Qd6 {simplifies} Qb6 22. Qxb6 Nxb6 23. a4) 21... Nb6 {[%emt 0:01:27]} 22. Qg5 {[%emt 0:05:52] [#]} ({White has to play} 22. Qxd8 $16 Rxd8 23. Rxd8+ Kg7 24. Be5+ f6 25. Bg3) 22... Rd5 $1 $15 {[%emt 0:07:17]} 23. Qf6 {[%emt 0:03:15]} Re6 {[%emt 0:10:25]} 24. Qf4 {[%emt 0:10:34]} Qxf4 {[%emt 0:07:21]} (24... Rxe2 $5 25. Qxb4 cxb4 26. Bxb6 Rg5+ (26... axb6 27. Rxd5 Rxe1+ 28. Kf2 $19) 27. Kh1 (27. Kf1 Rxe1+ 28. Rxe1 axb6 $14) 27... Rxe1+ (27... Rxa2 $2 {loses.} 28. Re8+ Kg7 29. Bd4+ Kh6 30. Be3 $18) 28. Rxe1 axb6 $15) 25. Bxf4 {[%emt 0:00:03]} Rxd1 {[%emt 0:01:16]} 26. Rxd1 {[%emt 0:00:02]} Rxe2 {[%emt 0:00:12][%mdl 4096] Endgame. KRB-KRN} 27. a4 {[%emt 0:01:04][%cal Ba2a4,Ba4a5,Ba5a6,Ba6a7][%mdl 32] And now a5 would win.} Re7 $2 {[%emt 0:03:34] [#]} (27... Ra2 $11) 28. Rd8+ $1 $18 {[%emt 0:04:00]} Kg7 {[%emt 0:00:00]} 29. a5 {[%emt 0:00:14]} Nd7 $2 {[%emt 0:02:24] [#]} (29... c4 {is more resistant.}) 30. Bd6 $1 {[%emt 0:00:14]} Kf6 {[%emt 0:00:30]} 31. Bxe7+ {[%emt 0:00:33]} Kxe7 {[%emt 0:00:01] KR-KN} 32. Ra8 {[%emt 0:00:08]} Kd6 {[%emt 0:00:42]} 33. Rxa7 {[%emt 0:00:13] Threatens to win with a6.} Kc6 {[%emt 0:00:27]} 34. a6 {[%emt 0:01:25][%cal Oa7d7] White wants to mate with Rxd7!} Nb6 {[%emt 0:00:52]} 35. Rxf7 {[%emt 0:00:23] White mates.} Na8 {[%emt 0:00:30]} 36. Rxh7 {[%emt 0:00:42]} Kb6 {[%emt 0:00:27]} 37. a7 {[%emt 0:00:06]} g5 {[%emt 0:00:31]} 38. Kg2 {[%emt 0:00:12] Weighted Error Value: White=0.08 (flawless) /Black=0.58.  Loses game:     	---       	Black=1      Mistake:       	White=1     	Black=2      Inaccurate:     	---       	Black=3      OK:         	White=7     	Black=9      Best:        	White=3     	Black=1      Strong:       	White=2     	---} 1-0

[Event "Chess Ladies Graz 2024"]
[Site "Graz"]
[Date "2024.02.28"]
[Round "4.1"]
[White "Daulyte-Cornette, Deimante"]
[Black "Trippold, Denise"]
[Result "1-0"]
[ECO "C02"]
[WhiteElo "2372"]
[BlackElo "2147"]
[Annotator "TA"]
[PlyCount "70"]
[EventDate "2024.02.25"]
[EventType "tourn"]
[EventCountry "AUT"]
[SourceTitle "playchess.com"]
[Source "ChessBase"]
[SourceQuality "1"]
[TimeControl "40/5400+30:1800+30"]

{[%evp 14,70,20,19,18,12,20,22,25,20,18,33,30,35,25,43,53,35,39,36,31,36,39,45,48,17,27,17,41,29,48,18,16,25,51,26,75,75,64,64,86,91,97,97,97,97,98,94,86,55,156,156,157,0,0,0,169,171,245]} 1. e4 {[%emt 0:00:03]} e6 {[%emt 0:00:10]} 2. d4 {[%emt 0:00:07]} d5 {[%emt 0:00:06]} 3. e5 {[%emt 0:00:05]} c5 {[%emt 0:00:22]} 4. c3 {[%emt 0:00:06]} Nc6 {[%emt 0:00:22]} 5. Nf3 {[%emt 0:00:08]} Bd7 {[%emt 0:00:21]} 6. Be2 {[%emt 0:00:11]} Nge7 {[%emt 0:00:36]} 7. O-O {[%emt 0:00:20]} Ng6 {[%emt 0:00:44]} 8. Be3 {[%emt 0:00:13]} Be7 {[%emt 0:00:43]} 9. Nbd2 {[%emt 0:00:14]} cxd4 {[%emt 0:02:48]} 10. cxd4 {[%emt 0:00:06]} O-O {[%emt 0:00:07] Die Stellung ist ausgeglichen.} 11. Re1 {[%emt 0:03:51]} f6 {[%emt 0:01:45]} 12. exf6 {[%emt 0:00:30]} Bxf6 {[%emt 0:00:14]} 13. Nb3 {[%emt 0:06:28]} b6 {[%emt 0:04:11]} 14. Rc1 {[%emt 0:00:14]} a5 {[%emt 0:10:37]} 15. Nbd2 {[%emt 0:05:06]} Nge7 {[%emt 0:11:20]} 16. Nf1 {[%emt 0:25:06]} Nf5 {[%emt 0:04:17]} 17. Bb5 {[%emt 0:00:15]} Nb4 {[%emt 0:07:51][%csl LRa2,LRb5]} 18. Bxd7 {[%emt 0:02:40]} Qxd7 {[%emt 0:00:47]} 19. Qb3 {[%emt 0:00:57]} Rfc8 {[%emt 0:14:20]} 20. Ng3 {[%emt 0:05:32]} Nxg3 {[%emt 0:09:54]} 21. hxg3 {[%emt 0:01:20]} Rxc1 {[%emt 0:00:06]} 22. Rxc1 {[%emt 0:04:32] Zielt auf a3 ab.} Rc8 {[%emt 0:01:18]} 23. Rc3 {[%emt 0:00:22][%cal Bc1c3,Bc3b3,Bb3b6][%mdl 32]} Qb7 {[%emt 0:04:38]} 24. a3 {[%emt 0:03:06]} Nc6 {[%emt 0:04:05]} (24... Rxc3 $11 {ist überlegen.} 25. Qxc3 Nc6) 25. Qb5 $16 {[%emt 0:03:16]} h6 {[%emt 0:01:23]} 26. Rb3 {[%emt 0:06:08] Weiß steht aktiver.} (26. g4 {vereinfacht} Kf8 27. Rb3 Kg8 28. Qxb6 Qxb6 29. Rxb6 e5 30. dxe5 Nxe5 31. Nxe5 Bxe5 32. Rb5) 26... Qd7 {[%emt 0:05:26]} 27. Qa6 {[%emt 0:04:03]} (27. Qxb6 Rb8 $17) 27... e5 {[%emt 0:05:53]} 28. dxe5 {[%emt 0:10:37]} (28. Qxb6 exd4 (28... Rb8 29. Qxb8+ Nxb8 30. Rxb8+ Kf7 31. dxe5 $16) 29. Bxd4 (29. Nxd4 Bxd4 30. Bxd4 Rb8 $17) 29... Rb8 30. Qxb8+ Nxb8 31. Rxb8+ Kh7 32. Bxf6 gxf6 $15) 28... Nxe5 {[%emt 0:00:05]} 29. Nxe5 {[%emt 0:00:20]} (29. Qxb6 $6 Nc4 30. Qa6 Bxb2 $11) 29... Bxe5 {[%emt 0:00:02]} 30. Rxb6 {[%emt 0:00:19]} d4 {[%emt 0:01:47]} 31. Qd3 {[%emt 0:07:37]} (31. Qxa5 $2 dxe3 (31... Bc7 $2 32. Qb5 $19) 32. Qxe5 Rc1+ 33. Kh2 exf2 34. Rb8+ Kh7 $19) 31... Qg4 {[%emt 0:05:16] [#]} (31... Qf7 $14 32. Bd2 (32. Bxd4 $2 Rc1+ $19) 32... Qh5) 32. Bxh6 $1 {[%emt 0:02:18][%mdl 512]} Qh5 {[%emt 0:03:57] [#]} 33. Qb3+ $2 {[%emt 0:04:52]} (33. f4 $1 $16 {[%cal Rf4e5]} Bf6 34. Bg5 Bxg5 35. Rb5 (35. fxg5 Qxg5 36. Qe2 Rd8 $11)) 33... Kh8 $11 {[%emt 0:00:17]} 34. Bd2 {[%emt 0:00:12]} Qe2 {[%emt 0:01:01] Wehrt Rb5 ab} (34... d3 $1 $11) 35. Qf7 $18 {[%emt 0:02:10][%cal Ob6e6] Und Re6! würde nun gewinnen.} (35. Bxa5 {wird mattgesetzt.} Rc1+) 35... Qxd2 {[%emt 0:00:00] Gewichteter Fehlerwert: Weiß=0.12 (sehr präzise) /Schwarz=0.24 (präzise) .  Verlustzug:     	---       	Schwarz=1     Fehler:       	Weiß=1     	Schwarz=3     Ungenau:       	Weiß=3     	Schwarz=1     OK:         	Weiß=12    	Schwarz=6     Bester:       	Weiß=1     	Schwarz=2     Brilliant:      	Weiß=1     	---} (35... Bxg3 {ist eine bessere Verteidigung.} 36. fxg3 (36. Bxa5 $2 {ist ein Selbstmatt.} Qd1+) 36... Qxd2 37. Qh5+ Kg8) 1-0

[Event "Chess Ladies Graz 2024"]
[Site "Graz"]
[Date "2024.02.28"]
[Round "4.2"]
[White "Polterauer, Chiara"]
[Black "Mkrtchian, Lilit"]
[Result "1/2-1/2"]
[ECO "C09"]
[WhiteElo "2189"]
[BlackElo "2378"]
[Annotator "RC"]
[PlyCount "38"]
[EventDate "2024.02.25"]
[EventType "tourn"]
[EventCountry "AUT"]
[SourceTitle "playchess.com"]
[Source "ChessBase"]
[SourceQuality "1"]
[TimeControl "40/5400+30:1800+30"]

1. e4 {[%emt 0:00:03]} e6 {[%emt 0:00:32]} 2. d4 {[%emt 0:00:04]} d5 {[%emt 0:00:04]} 3. Nd2 {[%emt 0:00:05]} c5 {[%emt 0:00:23]} 4. exd5 {[%emt 0:00:18]} exd5 {[%emt 0:00:07]} 5. Ngf3 {[%emt 0:00:17]} Nc6 {[%emt 0:00:08]} 6. Bb5 {[%emt 0:00:31]} Qe7+ {[%emt 0:00:08]} 7. Be2 {[%emt 0:00:18]} Qc7 {[%emt 0:00:10]} 8. O-O {[%emt 0:00:20]} Nf6 {[%emt 0:00:15]} 9. Re1 {[%emt 0:01:42]} cxd4 {[%emt 0:00:16]} 10. Nb3 {[%emt 0:00:34]} Be7 {[%emt 0:00:23]} 11. Nfxd4 {[%emt 0:00:40]} O-O {[%emt 0:01:06]} 12. h3 {[%emt 0:01:09]} a6 {[%emt 0:10:11]} 13. Bd3 {[%emt 0:04:51]} Ne5 {[%emt 0:23:13]} 14. Bf5 {[%emt 0:06:15]} g6 {[%emt 0:06:01]} 15. Bxc8 {[%emt 0:05:45]} Raxc8 {[%emt 0:00:08]} 16. Bg5 {[%emt 0:00:32]} Rfe8 {[%emt 0:01:21]} 17. c3 {[%emt 0:00:41]} Ne4 {[%emt 0:08:36]} 18. Bxe7 {[%emt 0:06:41]} Rxe7 {[%emt 0:00:10]} 19. Nf3 {[%emt 0:01:06]} Qb6 {[%emt 0:12:26]} 1/2-1/2